[Event "Titled Tuesday Blitz December 06 Late 2022"]
[White "Erzhanov, Arman"]
[Black "Da Silva Junior, Sediney Mari"]
[WhiteFideId "4138821"]
[BlackFideId "2132079"]
[WhiteElo "2176"]
[BlackElo "1996"]
[Result "0-1"]
[Round "04"]
[TimeControl "180+1"]
[Date "2022.12.07"]
[WhiteClock "0:01:44"]
[BlackClock "0:01:32"]

1. e4 {[%clk 0:03:00]}  e6 {[%clk 0:02:56]} 2. d4 {[%clk 0:03:00]}  d5 {[%clk 0:02:57]} 3. Nd2 {[%clk 0:03:00]}  c5 {[%clk 0:02:57]} 4. exd5 {[%clk 0:03:00]}  Qxd5 {[%clk 0:02:56]} 5. Ngf3 {[%clk 0:03:00]}  cxd4 {[%clk 0:02:56]} 6. Bc4 {[%clk 0:03:01]}  Qd6 {[%clk 0:02:55]} 7. Nb3 {[%clk 0:03:01]}  Nf6 {[%clk 0:02:48]} 8. Bg5 {[%clk 0:02:59]}  Qb4+ {[%clk 0:02:35]} 9. Nfd2 {[%clk 0:02:59]}  b5 {[%clk 0:02:33]} 10. a3 {[%clk 0:02:52]}  Qd6 {[%clk 0:02:20]} 11. Bxb5+ {[%clk 0:02:50]}  Bd7 {[%clk 0:02:19]} 12. Bd3 {[%clk 0:02:40]}  Qe5+ {[%clk 0:02:17]} 13. Ne4 {[%clk 0:02:30]}  Nxe4 {[%clk 0:02:13]} 14. f4 {[%clk 0:02:30]}  Qd5 {[%clk 0:02:09]} 15. O-O {[%clk 0:02:28]}  Nxg5 {[%clk 0:02:06]} 16. fxg5 {[%clk 0:02:29]}  Qxg5 {[%clk 0:02:06]} 17. Qf3 {[%clk 0:02:28]}  Qe3+ {[%clk 0:02:04]} 18. Kh1 {[%clk 0:02:24]}  Qxf3 {[%clk 0:02:04]} 19. Rxf3 {[%clk 0:02:25]}  Nc6 {[%clk 0:01:58]} 20. Raf1 {[%clk 0:02:25]}  f6 {[%clk 0:01:56]} 21. Re1 {[%clk 0:02:22]}  e5 {[%clk 0:01:54]} 22. Be4 {[%clk 0:02:18]}  Rb8 {[%clk 0:01:50]} 23. Rg3 {[%clk 0:02:15]}  Ne7 {[%clk 0:01:48]} 24. Nc5 {[%clk 0:02:12]}  Rxb2 {[%clk 0:01:44]} 25. c3 {[%clk 0:02:06]}  f5 {[%clk 0:01:42]} 26. Bb1 {[%clk 0:01:52]}  f4 {[%clk 0:01:39]} 27. Rg5 {[%clk 0:01:50]}  dxc3 {[%clk 0:01:37]} 28. Rgxe5 {[%clk 0:01:46]}  c2 {[%clk 0:01:34]} 29. Bxc2 {[%clk 0:01:46]}  Rxc2 {[%clk 0:01:34]} 30. Rb1 {[%clk 0:01:44]}  Bc6 {[%clk 0:01:32]} 0-1


[Site "https://www.chess.com"]

[Event "Titled Tuesday Blitz December 06 Late 2022"]
[White "Espinosa, Pedro"]
[Black "Rustemov, Alexander"]
[WhiteFideId "30921066"]
[BlackFideId "4119002"]
[WhiteElo "2016"]
[BlackElo "2793"]
[Result "0-1"]
[Round "04"]
[TimeControl "180+1"]
[Date "2022.12.06"]
[WhiteClock "0:00:45"]
[BlackClock "0:02:10"]

1. d4 {[%clk 0:03:00]}  g6 {[%clk 0:02:58]} 2. c4 {[%clk 0:02:58]}  Bg7 {[%clk 0:02:59]} 3. Nc3 {[%clk 0:02:58]}  c5 {[%clk 0:02:59]} 4. d5 {[%clk 0:02:55]}  Bxc3+ {[%clk 0:02:59]} 5. bxc3 {[%clk 0:02:55]}  f5 {[%clk 0:02:59]} 6. g3 {[%clk 0:02:43]}  Nf6 {[%clk 0:02:59]} 7. Bg2 {[%clk 0:02:43]}  Qa5 {[%clk 0:02:58]} 8. Bd2 {[%clk 0:02:40]}  d6 {[%clk 0:02:58]} 9. Qc2 {[%clk 0:02:39]}  Nbd7 {[%clk 0:02:58]} 10. e4 {[%clk 0:02:36]}  fxe4 {[%clk 0:02:52]} 11. Ne2 {[%clk 0:02:29]}  Ne5 {[%clk 0:02:49]} 12. Bxe4 {[%clk 0:02:19]}  Nxe4 {[%clk 0:02:48]} 13. Qxe4 {[%clk 0:02:18]}  Bf5 {[%clk 0:02:49]} 14. Qe3 {[%clk 0:02:08]}  Nxc4 {[%clk 0:02:47]} 15. Qh6 {[%clk 0:02:07]}  O-O-O {[%clk 0:02:39]} 16. O-O {[%clk 0:02:04]}  Qa4 {[%clk 0:02:32]} 17. Bg5 {[%clk 0:01:57]}  Rde8 {[%clk 0:02:18]} 18. Nf4 {[%clk 0:01:48]}  Ne5 {[%clk 0:02:17]} 19. Ne6 {[%clk 0:01:02]}  Nf3+ {[%clk 0:02:14]} 20. Kg2 {[%clk 0:01:02]}  Qe4 {[%clk 0:02:13]} 21. Bf4 {[%clk 0:00:46]}  Nh4+ {[%clk 0:02:11]} 22. Kg1 {[%clk 0:00:45]}  Qg2# {[%clk 0:02:10]} 0-1


[Site "https://www.chess.com"]

[Event "Titled Tuesday Blitz December 06 Late 2022"]
[White "Fernandez De La Vara, Arnaldo"]
[Black "Ansh M Shah"]
[WhiteFideId "3518388"]
[BlackFideId "25033379"]
[WhiteElo "2387"]
[BlackElo "2084"]
[Result "1-0"]
[Round "04"]
[TimeControl "180+1"]
[Date "2022.12.07"]
[WhiteClock "0:01:16"]
[BlackClock "0:00:11"]

1. e4 {[%clk 0:03:00]}  c6 {[%clk 0:02:59]} 2. Nf3 {[%clk 0:03:00]}  d5 {[%clk 0:03:00]} 3. Nc3 {[%clk 0:03:00]}  dxe4 {[%clk 0:03:01]} 4. Nxe4 {[%clk 0:03:01]}  Nf6 {[%clk 0:03:01]} 5. Ng3 {[%clk 0:03:02]}  e6 {[%clk 0:03:00]} 6. d4 {[%clk 0:03:02]}  Be7 {[%clk 0:03:01]} 7. c4 {[%clk 0:03:01]}  O-O {[%clk 0:03:02]} 8. b3 {[%clk 0:03:00]}  Nbd7 {[%clk 0:03:02]} 9. Be2 {[%clk 0:02:58]}  b6 {[%clk 0:03:00]} 10. O-O {[%clk 0:02:57]}  Bb7 {[%clk 0:03:01]} 11. Re1 {[%clk 0:02:44]}  c5 {[%clk 0:03:00]} 12. Bb2 {[%clk 0:02:43]}  cxd4 {[%clk 0:02:57]} 13. Nxd4 {[%clk 0:02:42]}  Nc5 {[%clk 0:02:56]} 14. Bf3 {[%clk 0:02:41]}  Bxf3 {[%clk 0:02:53]} 15. Qxf3 {[%clk 0:02:41]}  Qc7 {[%clk 0:02:32]} 16. Nc6 {[%clk 0:02:20]}  Rac8 {[%clk 0:02:20]} 17. Nf5 {[%clk 0:02:09]}  Bd8 {[%clk 0:01:53]} 18. Nh6+ {[%clk 0:01:46]}  Kh8 {[%clk 0:00:59]} 19. Nxd8 {[%clk 0:01:47]}  Qxd8 {[%clk 0:00:57]} 20. Rad1 {[%clk 0:01:46]}  Qe7 {[%clk 0:00:56]} 21. Nf5 {[%clk 0:01:46]}  Qb7 {[%clk 0:00:45]} 22. Qxb7 {[%clk 0:01:30]}  Nxb7 {[%clk 0:00:46]} 23. Nxg7 {[%clk 0:01:18]}  Kxg7 {[%clk 0:00:37]} 24. Rd3 {[%clk 0:01:19]}  e5 {[%clk 0:00:12]} 25. Rg3+ {[%clk 0:01:19]}  Kh6 {[%clk 0:00:11]} 26. Bc1+ {[%clk 0:01:19]}  Kh5 {[%clk 0:00:10]} 27. Rxe5+ {[%clk 0:01:19]}  Kh4 {[%clk 0:00:11]} 28. Rh3+ {[%clk 0:01:15]}  Kg4 {[%clk 0:00:11]} 29. f3# {[%clk 0:01:16]} 1-0


[Site "https://www.chess.com"]

[Event "Titled Tuesday Blitz December 06 Late 2022"]
[White "Gerbelli Neto, Eduardo"]
[Black "Przybylski, Wojciech"]
[WhiteFideId "2103281"]
[BlackFideId "1117599"]
[WhiteElo "2178"]
[BlackElo "2217"]
[Result "0-1"]
[Round "04"]
[TimeControl "180+1"]
[Date "2022.12.07"]
[WhiteClock "0:00:16"]
[BlackClock "0:00:14"]

1. e4 {[%clk 0:03:00]}  e5 {[%clk 0:02:19]} 2. Nf3 {[%clk 0:02:57]}  Nc6 {[%clk 0:02:16]} 3. d4 {[%clk 0:02:57]}  exd4 {[%clk 0:02:16]} 4. Nxd4 {[%clk 0:02:57]}  Nf6 {[%clk 0:02:16]} 5. Nc3 {[%clk 0:02:57]}  Bb4 {[%clk 0:02:14]} 6. Nxc6 {[%clk 0:02:56]}  bxc6 {[%clk 0:02:13]} 7. Bd3 {[%clk 0:02:57]}  O-O {[%clk 0:02:12]} 8. O-O {[%clk 0:02:57]}  d5 {[%clk 0:02:11]} 9. exd5 {[%clk 0:02:53]}  cxd5 {[%clk 0:02:11]} 10. Bg5 {[%clk 0:02:52]}  c6 {[%clk 0:02:11]} 11. Qf3 {[%clk 0:02:51]}  h6 {[%clk 0:02:07]} 12. Bxf6 {[%clk 0:02:44]}  Qxf6 {[%clk 0:02:08]} 13. Qxf6 {[%clk 0:02:44]}  gxf6 {[%clk 0:02:08]} 14. Ne2 {[%clk 0:02:45]}  Bd6 {[%clk 0:02:04]} 15. Nd4 {[%clk 0:02:38]}  c5 {[%clk 0:02:00]} 16. Nf5 {[%clk 0:02:37]}  Bxf5 {[%clk 0:01:57]} 17. Bxf5 {[%clk 0:02:38]}  Be5 {[%clk 0:01:51]} 18. c3 {[%clk 0:02:35]}  d4 {[%clk 0:01:48]} 19. c4 {[%clk 0:02:18]}  Rab8 {[%clk 0:01:41]} 20. b3 {[%clk 0:02:18]}  Rfd8 {[%clk 0:01:36]} 21. Rad1 {[%clk 0:02:18]}  Kf8 {[%clk 0:01:25]} 22. Rd3 {[%clk 0:02:16]}  Rb6 {[%clk 0:01:23]} 23. f4 {[%clk 0:02:11]}  Bd6 {[%clk 0:01:21]} 24. Rh3 {[%clk 0:02:07]}  Re8 {[%clk 0:01:16]} 25. Rxh6 {[%clk 0:01:58]}  Re2 {[%clk 0:01:15]} 26. Rxf6 {[%clk 0:01:46]}  Kg7 {[%clk 0:01:14]} 27. Bg4 {[%clk 0:01:31]}  Rxa2 {[%clk 0:00:56]} 28. Rf5 {[%clk 0:01:29]}  Rxb3 {[%clk 0:00:54]} 29. Rd5 {[%clk 0:01:18]}  Rbb2 {[%clk 0:00:48]} 30. Bh3 {[%clk 0:01:11]}  Be7 {[%clk 0:00:47]} 31. Rd7 {[%clk 0:01:02]}  Bf6 {[%clk 0:00:45]} 32. Rd1 {[%clk 0:00:38]}  Bh4 {[%clk 0:00:39]} 33. Rd5 {[%clk 0:00:23]}  Be7 {[%clk 0:00:24]} 34. Rd7 {[%clk 0:00:23]}  Bf6 {[%clk 0:00:22]} 35. Rd5 {[%clk 0:00:22]}  Rc2 {[%clk 0:00:17]} 36. Rxc5 {[%clk 0:00:20]}  d3 {[%clk 0:00:18]} 37. Rc7 {[%clk 0:00:20]}  Bd4+ {[%clk 0:00:14]} 38. Kh1 {[%clk 0:00:19]}  d2 {[%clk 0:00:15]} 39. Rd7 {[%clk 0:00:18]}  Rc1 {[%clk 0:00:14]} 40. Bg4 {[%clk 0:00:16]}  Raa1 {[%clk 0:00:14]} 0-1


[Site "https://www.chess.com"]

[Event "Titled Tuesday Blitz December 06 Late 2022"]
[White "Girel, Joseph"]
[Black "Winterberg, Lukas"]
[WhiteFideId "36033561"]
[BlackFideId "24622702"]
[WhiteElo "2281"]
[BlackElo "2350"]
[Result "0-1"]
[Round "04"]
[TimeControl "180+1"]
[Date "2022.12.07"]
[WhiteClock "0:00:04"]
[BlackClock "0:00:54"]

1. e4 {[%clk 0:01:51]}  e6 {[%clk 0:02:57]} 2. d4 {[%clk 0:01:51]}  d5 {[%clk 0:02:58]} 3. Nd2 {[%clk 0:01:51]}  c5 {[%clk 0:02:58]} 4. exd5 {[%clk 0:01:51]}  Qxd5 {[%clk 0:02:59]} 5. Ngf3 {[%clk 0:01:52]}  cxd4 {[%clk 0:02:59]} 6. Bc4 {[%clk 0:01:52]}  Qd7 {[%clk 0:03:00]} 7. O-O {[%clk 0:01:50]}  Nc6 {[%clk 0:03:00]} 8. Nb3 {[%clk 0:01:50]}  a6 {[%clk 0:03:01]} 9. a4 {[%clk 0:01:50]}  Nf6 {[%clk 0:03:00]} 10. Qe2 {[%clk 0:01:50]}  Bd6 {[%clk 0:02:58]} 11. Rd1 {[%clk 0:01:51]}  e5 {[%clk 0:02:58]} 12. Nbxd4 {[%clk 0:01:49]}  Nxd4 {[%clk 0:02:59]} 13. Rxd4 {[%clk 0:01:42]}  Qe7 {[%clk 0:02:59]} 14. Rxd6 {[%clk 0:01:41]}  Qxd6 {[%clk 0:03:00]} 15. b3 {[%clk 0:01:41]}  e4 {[%clk 0:03:00]} 16. Ba3 {[%clk 0:01:41]}  Qf4 {[%clk 0:03:01]} 17. h3 {[%clk 0:01:37]}  Be6 {[%clk 0:02:56]} 18. Nd4 {[%clk 0:01:14]}  Qe5 {[%clk 0:02:28]} 19. Rd1 {[%clk 0:01:05]}  O-O-O {[%clk 0:02:25]} 20. Nxe6 {[%clk 0:00:31]}  fxe6 {[%clk 0:02:26]} 21. Re1 {[%clk 0:00:28]}  Rd7 {[%clk 0:02:05]} 22. Qe3 {[%clk 0:00:28]}  Qd4 {[%clk 0:01:48]} 23. Bxe6 {[%clk 0:00:27]}  Qxe3 {[%clk 0:01:45]} 24. Rxe3 {[%clk 0:00:27]}  Re8 {[%clk 0:01:43]} 25. Bxd7+ {[%clk 0:00:23]}  Kxd7 {[%clk 0:01:44]} 26. Bb2 {[%clk 0:00:23]}  Kc6 {[%clk 0:01:44]} 27. f3 {[%clk 0:00:17]}  exf3 {[%clk 0:01:39]} 28. Rxf3 {[%clk 0:00:18]}  Re6 {[%clk 0:01:32]} 29. Bxf6 {[%clk 0:00:17]}  gxf6 {[%clk 0:01:31]} 30. Kf2 {[%clk 0:00:17]}  Kd5 {[%clk 0:01:30]} 31. Re3 {[%clk 0:00:17]}  Rc6 {[%clk 0:01:27]} 32. c3 {[%clk 0:00:17]}  a5 {[%clk 0:01:26]} 33. Ke2 {[%clk 0:00:17]}  Rb6 {[%clk 0:01:26]} 34. c4+ {[%clk 0:00:13]}  Kd4 {[%clk 0:01:26]} 35. Kd2 {[%clk 0:00:13]}  f5 {[%clk 0:01:25]} 36. Rd3+ {[%clk 0:00:13]}  Ke4 {[%clk 0:01:25]} 37. Kc2 {[%clk 0:00:13]}  f4 {[%clk 0:01:22]} 38. c5 {[%clk 0:00:08]}  Rg6 {[%clk 0:01:20]} 39. Rd2 {[%clk 0:00:08]}  Rc6 {[%clk 0:01:18]} 40. Re2+ {[%clk 0:00:09]}  Kd4 {[%clk 0:01:16]} 41. Re7 {[%clk 0:00:09]}  Rxc5+ {[%clk 0:01:15]} 42. Kb2 {[%clk 0:00:09]}  Rg5 {[%clk 0:01:15]} 43. Rxh7 {[%clk 0:00:06]}  Rxg2+ {[%clk 0:01:15]} 44. Ka3 {[%clk 0:00:07]}  b6 {[%clk 0:01:11]} 45. Rh6 {[%clk 0:00:06]}  Kc5 {[%clk 0:01:00]} 46. Rh5+ {[%clk 0:00:05]}  Kd4 {[%clk 0:00:57]} 47. Rb5 {[%clk 0:00:03]}  Rg6 {[%clk 0:00:57]} 48. Rf5 {[%clk 0:00:02]}  Ke4 {[%clk 0:00:57]} 49. Rf8 {[%clk 0:00:02]}  f3 {[%clk 0:00:58]} 50. h4 {[%clk 0:00:03]}  Ke3 {[%clk 0:00:54]} 51. h5 {[%clk 0:00:04]}  Rh6 {[%clk 0:00:55]} 52. Rf5 {[%clk 0:00:04]}  f2 {[%clk 0:00:54]} 0-1


[Site "https://www.chess.com"]

[Event "Titled Tuesday Blitz December 06 Late 2022"]
[White "Godzwon, Iwo"]
[Black "Silva, Pedro Gil Ferreira Da"]
[WhiteFideId "21802483"]
[BlackFideId "1946102"]
[WhiteElo "2284"]
[BlackElo "2241"]
[Result "1-0"]
[Round "04"]
[TimeControl "180+1"]
[Date "2022.12.07"]
[WhiteClock "0:02:37"]
[BlackClock "0:02:03"]

1. e4 {[%clk 0:02:59]}  c5 {[%clk 0:02:59]} 2. Nf3 {[%clk 0:02:58]}  e6 {[%clk 0:02:58]} 3. d4 {[%clk 0:02:57]}  cxd4 {[%clk 0:02:59]} 4. Nxd4 {[%clk 0:02:57]}  a6 {[%clk 0:02:59]} 5. c4 {[%clk 0:02:57]}  Nf6 {[%clk 0:02:58]} 6. Nc3 {[%clk 0:02:58]}  Bb4 {[%clk 0:02:58]} 7. Nc2 {[%clk 0:02:57]}  Bxc3+ {[%clk 0:02:58]} 8. bxc3 {[%clk 0:02:58]}  Qc7 {[%clk 0:02:57]} 9. f3 {[%clk 0:02:57]}  O-O {[%clk 0:02:56]} 10. Bg5 {[%clk 0:02:52]}  Qe5 {[%clk 0:02:50]} 11. Qd2 {[%clk 0:02:50]}  d5 {[%clk 0:02:34]} 12. Bf4 {[%clk 0:02:46]}  Qh5 {[%clk 0:02:34]} 13. g4 {[%clk 0:02:41]}  Qg6 {[%clk 0:02:17]} 14. e5 {[%clk 0:02:41]}  Nfd7 {[%clk 0:02:05]} 15. Bd3 {[%clk 0:02:40]}  f5 {[%clk 0:02:06]} 16. cxd5 {[%clk 0:02:37]}  Nc6 {[%clk 0:02:03]} 17. dxc6 {[%clk 0:02:37]} 1-0


[Site "https://www.chess.com"]

[Event "Titled Tuesday Blitz December 06 Late 2022"]
[White "Gutkin, Ilya"]
[Black "Papp, Levente"]
[WhiteFideId "16203470"]
[BlackFideId "751243"]
[WhiteElo "2265"]
[BlackElo "2380"]
[Result "1-0"]
[Round "04"]
[TimeControl "180+1"]
[Date "2022.12.07"]
[WhiteClock "0:00:08"]
[BlackClock "0:00:02"]

1. Nf3 {[%clk 0:03:00]}  Nc6 {[%clk 0:02:54]} 2. d4 {[%clk 0:03:00]}  e6 {[%clk 0:02:53]} 3. g3 {[%clk 0:02:53]}  Nf6 {[%clk 0:02:52]} 4. Bg2 {[%clk 0:02:53]}  d5 {[%clk 0:02:49]} 5. c4 {[%clk 0:02:49]}  dxc4 {[%clk 0:02:46]} 6. O-O {[%clk 0:02:49]}  Be7 {[%clk 0:02:36]} 7. Na3 {[%clk 0:02:41]}  Bxa3 {[%clk 0:02:30]} 8. bxa3 {[%clk 0:02:42]}  O-O {[%clk 0:02:29]} 9. Bb2 {[%clk 0:02:40]}  Rb8 {[%clk 0:02:13]} 10. a4 {[%clk 0:02:34]}  a6 {[%clk 0:02:09]} 11. Qc2 {[%clk 0:02:14]}  b5 {[%clk 0:02:06]} 12. Ng5 {[%clk 0:02:14]}  Nxd4 {[%clk 0:01:48]} 13. Qd1 {[%clk 0:00:59]}  c5 {[%clk 0:01:32]} 14. e3 {[%clk 0:00:55]}  bxa4 {[%clk 0:00:53]} 15. Ba3 {[%clk 0:00:35]}  Nd5 {[%clk 0:00:50]} 16. Ne4 {[%clk 0:00:31]}  Nb5 {[%clk 0:00:40]} 17. Bxc5 {[%clk 0:00:30]}  Re8 {[%clk 0:00:40]} 18. Qxa4 {[%clk 0:00:28]}  c3 {[%clk 0:00:38]} 19. Rac1 {[%clk 0:00:22]}  Bb7 {[%clk 0:00:36]} 20. Rfd1 {[%clk 0:00:19]}  Rc8 {[%clk 0:00:33]} 21. Bd4 {[%clk 0:00:15]}  Nxd4 {[%clk 0:00:16]} 22. Rxd4 {[%clk 0:00:16]}  Qb6 {[%clk 0:00:13]} 23. Qb3 {[%clk 0:00:14]}  Qxb3 {[%clk 0:00:10]} 24. axb3 {[%clk 0:00:15]}  c2 {[%clk 0:00:06]} 25. Nd6 {[%clk 0:00:14]}  Nc3 {[%clk 0:00:05]} 26. Rxc2 {[%clk 0:00:11]}  e5 {[%clk 0:00:04]} 27. Rc4 {[%clk 0:00:09]}  Bxg2 {[%clk 0:00:04]} 28. Rxc8 {[%clk 0:00:07]}  Rxc8 {[%clk 0:00:02]} 29. Nxc8 {[%clk 0:00:08]} 1-0


[Site "https://www.chess.com"]

[Event "Titled Tuesday Blitz December 06 Late 2022"]
[White "Guzman Moneo, Alberto"]
[Black "Yurasova, Daria"]
[WhiteFideId "2209616"]
[BlackFideId "34146919"]
[WhiteElo "2157"]
[BlackElo "2098"]
[Result "0-1"]
[Round "04"]
[TimeControl "180+1"]
[Date "2022.12.07"]
[WhiteClock "0:00:19"]
[BlackClock "0:00:22"]

1. c4 {[%clk 0:03:00]}  c5 {[%clk 0:02:59]} 2. Nf3 {[%clk 0:03:00]}  b6 {[%clk 0:02:59]} 3. g3 {[%clk 0:02:59]}  Bb7 {[%clk 0:02:59]} 4. Bg2 {[%clk 0:02:59]}  Nf6 {[%clk 0:03:00]} 5. O-O {[%clk 0:02:56]}  e6 {[%clk 0:03:00]} 6. Nc3 {[%clk 0:02:55]}  Be7 {[%clk 0:03:01]} 7. d4 {[%clk 0:02:49]}  cxd4 {[%clk 0:03:01]} 8. Qxd4 {[%clk 0:02:45]}  O-O {[%clk 0:03:00]} 9. Bf4 {[%clk 0:02:43]}  d6 {[%clk 0:02:57]} 10. Qd2 {[%clk 0:02:36]}  Na6 {[%clk 0:02:17]} 11. Rfd1 {[%clk 0:02:33]}  Rc8 {[%clk 0:02:16]} 12. b3 {[%clk 0:02:32]}  d5 {[%clk 0:02:15]} 13. cxd5 {[%clk 0:02:26]}  Nxd5 {[%clk 0:02:16]} 14. Nxd5 {[%clk 0:02:26]}  Bxd5 {[%clk 0:02:16]} 15. Rac1 {[%clk 0:02:21]}  Rxc1 {[%clk 0:02:13]} 16. Qxc1 {[%clk 0:02:18]}  Qa8 {[%clk 0:02:12]} 17. Ne1 {[%clk 0:02:12]}  Bxg2 {[%clk 0:02:11]} 18. Nxg2 {[%clk 0:02:13]}  Nc5 {[%clk 0:02:10]} 19. Be5 {[%clk 0:01:53]}  Rd8 {[%clk 0:02:04]} 20. Ne3 {[%clk 0:01:43]}  f6 {[%clk 0:02:00]} 21. Bb2 {[%clk 0:01:38]}  Kf7 {[%clk 0:01:49]} 22. Qc2 {[%clk 0:01:33]}  Qe4 {[%clk 0:01:37]} 23. Rxd8 {[%clk 0:01:28]}  Qxc2 {[%clk 0:01:31]} 24. Nxc2 {[%clk 0:01:26]}  Bxd8 {[%clk 0:01:31]} 25. Nd4 {[%clk 0:01:24]}  Bc7 {[%clk 0:01:21]} 26. Nc6 {[%clk 0:01:19]}  a6 {[%clk 0:01:12]} 27. f3 {[%clk 0:01:11]}  a5 {[%clk 0:01:01]} 28. Kf2 {[%clk 0:01:04]}  e5 {[%clk 0:00:58]} 29. Na7 {[%clk 0:00:41]}  Ne6 {[%clk 0:00:54]} 30. Nb5 {[%clk 0:00:38]}  Bb8 {[%clk 0:00:54]} 31. e3 {[%clk 0:00:36]}  Ke8 {[%clk 0:00:53]} 32. f4 {[%clk 0:00:35]}  exf4 {[%clk 0:00:53]} 33. gxf4 {[%clk 0:00:35]}  Kd7 {[%clk 0:00:52]} 34. Kf3 {[%clk 0:00:34]}  Nc5 {[%clk 0:00:51]} 35. Bd4 {[%clk 0:00:32]}  Kc6 {[%clk 0:00:49]} 36. Nc3 {[%clk 0:00:32]}  Nd3 {[%clk 0:00:45]} 37. Ke2 {[%clk 0:00:29]}  Nb4 {[%clk 0:00:45]} 38. h4 {[%clk 0:00:24]}  Nc2 {[%clk 0:00:36]} 39. Kd3 {[%clk 0:00:23]}  Ne1+ {[%clk 0:00:36]} 40. Ke4 {[%clk 0:00:23]}  b5 {[%clk 0:00:32]} 41. h5 {[%clk 0:00:22]}  Nc2 {[%clk 0:00:28]} 42. h6 {[%clk 0:00:21]}  f5+ {[%clk 0:00:18]} 43. Kxf5 {[%clk 0:00:20]}  Nxd4+ {[%clk 0:00:19]} 44. exd4 {[%clk 0:00:19]}  gxh6 {[%clk 0:00:20]} 45. Ke6 {[%clk 0:00:16]}  b4 {[%clk 0:00:19]} 46. d5+ {[%clk 0:00:15]}  Kc5 {[%clk 0:00:19]} 47. Ne4+ {[%clk 0:00:15]}  Kd4 {[%clk 0:00:20]} 48. d6 {[%clk 0:00:14]}  Kxe4 {[%clk 0:00:19]} 49. f5 {[%clk 0:00:15]}  Bxd6 {[%clk 0:00:17]} 50. Kxd6 {[%clk 0:00:14]}  Kxf5 {[%clk 0:00:18]} 51. Kc5 {[%clk 0:00:15]}  h5 {[%clk 0:00:18]} 52. Kb5 {[%clk 0:00:16]}  h4 {[%clk 0:00:19]} 53. Kxa5 {[%clk 0:00:17]}  h3 {[%clk 0:00:20]} 54. Kxb4 {[%clk 0:00:17]}  h2 {[%clk 0:00:20]} 55. Kb5 {[%clk 0:00:18]}  h1=Q {[%clk 0:00:21]} 56. Ka6 {[%clk 0:00:18]}  Qa1 {[%clk 0:00:21]} 57. b4 {[%clk 0:00:19]}  Qxa2+ {[%clk 0:00:22]} 0-1


[Site "https://www.chess.com"]

[Event "Titled Tuesday Blitz December 06 Late 2022"]
[White "Haszon, David"]
[Black "Grapsa, Georgia"]
[WhiteFideId "733610"]
[BlackFideId "4206436"]
[WhiteElo "2210"]
[BlackElo "1825"]
[Result "0-1"]
[Round "04"]
[TimeControl "180+1"]
[Date "2022.12.07"]
[WhiteClock "0:00:20"]
[BlackClock "0:00:28"]

1. e4 {[%clk 0:03:00]}  d5 {[%clk 0:02:59]} 2. exd5 {[%clk 0:03:00]}  Qxd5 {[%clk 0:03:00]} 3. Nc3 {[%clk 0:03:01]}  Qa5 {[%clk 0:02:59]} 4. d4 {[%clk 0:03:01]}  Nf6 {[%clk 0:02:59]} 5. Nf3 {[%clk 0:03:01]}  c6 {[%clk 0:03:00]} 6. Bc4 {[%clk 0:02:51]}  Bf5 {[%clk 0:03:00]} 7. h3 {[%clk 0:02:51]}  e6 {[%clk 0:03:00]} 8. g4 {[%clk 0:02:50]}  Bg6 {[%clk 0:03:00]} 9. Ne5 {[%clk 0:02:50]}  Nbd7 {[%clk 0:03:00]} 10. Nxg6 {[%clk 0:02:48]}  hxg6 {[%clk 0:03:01]} 11. Bd2 {[%clk 0:02:46]}  Qb6 {[%clk 0:02:59]} 12. Qf3 {[%clk 0:02:43]}  Qxd4 {[%clk 0:02:57]} 13. Be2 {[%clk 0:02:35]}  Bb4 {[%clk 0:02:48]} 14. O-O-O {[%clk 0:02:34]}  Bxc3 {[%clk 0:02:41]} 15. Bxc3 {[%clk 0:02:35]}  Qa4 {[%clk 0:02:38]} 16. Kb1 {[%clk 0:02:22]}  O-O {[%clk 0:02:37]} 17. h4 {[%clk 0:02:18]}  Nd5 {[%clk 0:02:33]} 18. Rxd5 {[%clk 0:02:17]}  cxd5 {[%clk 0:02:27]} 19. h5 {[%clk 0:02:17]}  d4 {[%clk 0:02:19]} 20. hxg6 {[%clk 0:02:14]}  fxg6 {[%clk 0:02:00]} 21. Qe4 {[%clk 0:02:15]}  e5 {[%clk 0:02:01]} 22. Qd5+ {[%clk 0:02:11]}  Rf7 {[%clk 0:01:59]} 23. Bc4 {[%clk 0:02:09]}  Rf8 {[%clk 0:01:55]} 24. Bb3 {[%clk 0:01:11]}  Qc6 {[%clk 0:01:50]} 25. Bb4 {[%clk 0:01:07]}  Qxd5 {[%clk 0:01:41]} 26. Bxd5 {[%clk 0:01:08]}  Nf6 {[%clk 0:01:42]} 27. Be6 {[%clk 0:01:00]}  g5 {[%clk 0:01:33]} 28. Bxf8 {[%clk 0:00:58]}  Kxf8 {[%clk 0:01:30]} 29. Bxf7 {[%clk 0:00:59]}  Kxf7 {[%clk 0:01:31]} 30. f3 {[%clk 0:00:57]}  Ke6 {[%clk 0:01:29]} 31. c3 {[%clk 0:00:57]}  dxc3 {[%clk 0:01:27]} 32. bxc3 {[%clk 0:00:57]}  e4 {[%clk 0:01:27]} 33. fxe4 {[%clk 0:00:55]}  Ke5 {[%clk 0:01:27]} 34. Kc2 {[%clk 0:00:52]}  Kxe4 {[%clk 0:01:26]} 35. Rh8 {[%clk 0:00:51]}  Kf3 {[%clk 0:01:23]} 36. Rb8 {[%clk 0:00:52]}  Kxg4 {[%clk 0:01:18]} 37. Rxb7 {[%clk 0:00:52]}  Nh5 {[%clk 0:01:18]} 38. Rxa7 {[%clk 0:00:52]}  Kh3 {[%clk 0:01:16]} 39. Rb7 {[%clk 0:00:52]}  g4 {[%clk 0:01:15]} 40. a4 {[%clk 0:00:53]}  g3 {[%clk 0:01:15]} 41. a5 {[%clk 0:00:53]}  g2 {[%clk 0:01:15]} 42. Rb1 {[%clk 0:00:52]}  Ng3 {[%clk 0:01:15]} 43. a6 {[%clk 0:00:49]}  Nf1 {[%clk 0:01:15]} 44. a7 {[%clk 0:00:49]}  g1=Q {[%clk 0:01:15]} 45. a8=Q {[%clk 0:00:48]}  Qf2+ {[%clk 0:01:11]} 46. Kb3 {[%clk 0:00:39]}  Nd2+ {[%clk 0:01:10]} 47. Kb2 {[%clk 0:00:38]}  Nxb1+ {[%clk 0:00:56]} 48. Kxb1 {[%clk 0:00:39]}  g5 {[%clk 0:00:55]} 49. Qh8+ {[%clk 0:00:36]}  Kg2 {[%clk 0:00:48]} 50. Qd4 {[%clk 0:00:20]}  Qf5+ {[%clk 0:00:39]} 51. Kb2 {[%clk 0:00:19]}  g4 {[%clk 0:00:40]} 52. c4 {[%clk 0:00:19]}  g3 {[%clk 0:00:40]} 53. c5 {[%clk 0:00:18]}  Qf2+ {[%clk 0:00:40]} 54. Kc3 {[%clk 0:00:18]}  Qxd4+ {[%clk 0:00:29]} 55. Kxd4 {[%clk 0:00:18]}  Kh2 {[%clk 0:00:26]} 56. c6 {[%clk 0:00:19]}  g2 {[%clk 0:00:26]} 57. c7 {[%clk 0:00:20]}  g1=Q+ {[%clk 0:00:27]} 58. Kd5 {[%clk 0:00:20]}  Qg8+ {[%clk 0:00:27]} 59. Kc6 {[%clk 0:00:20]}  Qc8 {[%clk 0:00:28]} 0-1


[Site "https://www.chess.com"]